fUST/lending_fUST_20240511
["ID","MTS","AMOUNT","RATE_DAILY","PERIOD"]
[326802020,1715381520211,-510.44,0.00078904,2]
[326802021,1715381520222,-3744.03,0.00078904,120]
[326802022,1715381520232,-1011.1,0.00078904,120]
[326802023,1715381520242,-650.98,0.00078904,120]
[326802024,1715381520253,-150.97189538,0.00079103,120]
[326802025,1715381520263,-1412.84698914,0.00079266,120]
[326802026,1715381520274,-163.80078919,0.00079316,7]
[326802027,1715381520284,-172.74843413,0.00079316,2]
[326802028,1715381520294,-170.87407631,0.00079488,77]
[326802029,1715381520303,-152.87482911,0.00079607,120]
[326802030,1715381520312,-197.257994,0.00079625,120]
[326802031,1715381520321,-974.14542013,0.00079656,120]
[326802032,1715381520331,-152.87482914,0.00079727,120]
[326802033,1715381520341,-3842.62151679,0.00079899,120]
[326802034,1715381520350,-1045.6347658,0.000799,112]
[326802035,1715381520361,-1160.68875863,0.00079989,92]
[326802036,1715381520370,-500000.0,0.0008,120]
[326802037,1715381520380,-500000.0,0.0008,120]
[326802038,1715381520389,-588293.88524358,0.0008,120]
[326802039,1715381520398,-1998.15794393,0.0008,120]
[326802040,1715381520407,-193.62449376,0.0008,120]
[326802041,1715381520417,-1000.0,0.0008,120]
[326802042,1715381520426,-661.93906384,0.0008,50]
[326802043,1715381520435,-3985.51728446,0.0008,2]
[326802044,1715381520445,-165.67025376,0.0008,10]
[326802045,1715381520454,-2221.72923002,0.0008,120]
[326802046,1715381520464,-300.0,0.0008,105]
[326802047,1715381520474,-602.32024567,0.0008,120]
[326802048,1715381520483,-1165.14861849,0.0008,120]
[326802049,1715381520493,-549.92498727,0.0008,120]
[326802050,1715381520503,-609.9180893,0.0008,120]
[326802051,1715381520512,-2148.31788036,0.0008,120]
[326802052,1715381520521,-541.23423125,0.0008,120]
[326802053,1715381520532,-574.8501579,0.0008,120]
[326802054,1715381520548,-1271.81028243,0.0008,7]
[326802055,1715381520557,-1161.23010499,0.0008,120]
[326802056,1715381520566,-665.02234284,0.0008,120]
[326802057,1715381520575,-607.05138213,0.0008,120]
[326802058,1715381520588,-2047.22816662,0.0008,120]
[326802059,1715381520597,-667.03524992,0.0008,120]
[326802060,1715381520607,-2116.05063457,0.0008,4]
[326802061,1715381520615,-744.80992128,0.0008,120]
[326802062,1715381520625,-671.86126048,0.0008,120]
[326802063,1715381520634,-1253.32592857,0.0008,120]
[326802064,1715381520643,-2379.62968947,0.0008,120]
[326802065,1715381520653,-591.83967658,0.0008,120]
[326802066,1715381520662,-576.82344208,0.0008,120]
[326802067,1715381520671,-534.48140984,0.0008,120]
[326802068,1715381520680,-1078.66922891,0.0008,120]
[326802069,1715381520690,-1490.15542944,0.0008,120]
[326802070,1715381520699,-1505.17303066,0.0008,120]
[326802071,1715381520708,-821.83320469,0.0008,120]
[326802072,1715381520717,-847.2151445,0.0008,120]
[326802073,1715381520726,-1744.34816131,0.0008,2]
[326802074,1715381520735,-1487.26983599,0.0008,120]
[326802075,1715381520745,-2725.20077161,0.0008,120]
[326802076,1715381520756,-1524.71121224,0.0008,120]
[326802077,1715381520765,-621.59673125,0.0008,120]
[326802078,1715381520774,-551.09499075,0.0008,120]
[326802079,1715381520784,-670.60334936,0.0008,120]
[326802080,1715381520793,-1135.52176,0.0008,120]
[326802081,1715381520802,-515.6128642,0.0008,120]
[326802082,1715381520811,-566.18809976,0.0008,120]
[326802083,1715381520821,-700.75324338,0.0008,120]
[326802084,1715381520830,-571.10506253,0.0008,120]
[326802085,1715381520839,-2669.19205979,0.0008,120]
[326802086,1715381520848,-820.5800683,0.0008,120]
[326802087,1715381520857,-501.30257519,0.0008,120]
[326802088,1715381520866,-598.34526739,0.0008,120]
[326802089,1715381520876,-967.47874341,0.0008,120]
[326802090,1715381520885,-819.59631536,0.0008,120]
[326802091,1715381520894,-1774.405242,0.0008,120]
[326802092,1715381520903,-620.78702293,0.0008,120]
[326802093,1715381521031,-594.81239379,0.0008,120]
[326802094,1715381521041,-819.95,0.0008,120]
[326802095,1715381521050,-678.91917176,0.0008,120]
[326802096,1715381521059,-610.91349003,0.0008,120]
[326802097,1715381521069,-648.48259799,0.0008,120]
[326802098,1715381521078,-873.95069639,0.0008,120]
[326802099,1715381521087,-780.39597338,0.0008,120]
[326802100,1715381521096,-2756.47751123,0.0008,120]
[326802101,1715381521105,-1210.86766559,0.0008,120]
[326802102,1715381521114,-1070.99405507,0.0008,120]
[326802103,1715381521124,-1070.60513841,0.0008,120]
[326802104,1715381521134,-757.75,0.0008,120]
[326802105,1715381521143,-4210.73560467,0.0008,120]
[326802106,1715381521152,-2993.37594727,0.0008,120]
[326802107,1715381521162,-551.215574,0.0008,120]
[326802108,1715381521171,-733.99776148,0.0008,120]
[326802109,1715381521186,-222.99033462,0.0008,120]
[326802110,1715381521198,-4673.07380601,0.0008,120]
[326802111,1715381521207,-1818.83160391,0.0008,120]
[326802112,1715381521216,-527.33503932,0.0008,120]
[326802113,1715381521227,-1189.98678018,0.0008,120]
[326802114,1715381521236,-580.33884128,0.0008,120]
[326802115,1715381521245,-837.64179663,0.0008,120]
[326802116,1715381521255,-599.78448575,0.0008,120]
[326802117,1715381521266,-1366.55860469,0.0008,7]
[326802118,1715381521275,-549.773636,0.0008,120]
[326802119,1715381521285,-9331.91289735,0.0008,120]
[326802120,1715381521295,-638.24421045,0.0008,120]
[326802121,1715381521304,-2273.10855808,0.0008,120]
[326802122,1715381521313,-623.1332707,0.0008,120]
[326802123,1715381521322,-1021.64118488,0.0008,120]
[326802124,1715381521331,-3952.42886678,0.0008,120]
[326802125,1715381521341,-728.66030087,0.0008,120]
[326802126,1715381521350,-7668.05097052,0.0008,120]
[326802127,1715381521360,-570.86713574,0.0008,120]
[326802128,1715381521369,-3674.14334042,0.0008,120]
[326802129,1715381521378,-2110.42621858,0.0008,120]
[326802130,1715381521387,-8336.26684459,0.0008,120]
[326802131,1715381521396,-1410.45237654,0.0008,120]
[326802132,1715381521405,-1155.03100456,0.0008,120]
[326802133,1715381521414,-8703.24207927,0.0008,120]
[326802134,1715381521423,-751.45458506,0.0008,120]
[326802135,1715381521433,-536.40319653,0.0008,120]
[326802136,1715381521442,-745.90325811,0.0008,120]
[326802137,1715381521452,-1112.93064561,0.0008,120]
[326802138,1715381521461,-3156.18,0.0008,120]
[326802139,1715381521471,-1283.03696903,0.0008,120]
[326802140,1715381521480,-1748.09011049,0.0008,120]
[326802141,1715381521489,-924.35965916,0.0008,120]
[326802142,1715381521499,-585.37072271,0.0008,120]
[326802143,1715381521508,-791.0600077,0.0008,120]
[326802144,1715381521518,-1269.32524819,0.0008,120]
[326802145,1715381521527,-5883.10711942,0.0008,120]
[326802146,1715381521536,-1860.05179096,0.0008,120]
[326802147,1715381521546,-1701.2239329,0.0008,120]
[326802148,1715381521557,-632.55802709,0.0008,60]
[326802149,1715381521565,-1691.67467121,0.0008,120]
[326802150,1715381521574,-592.97134929,0.0008,120]
[326802151,1715381521583,-3991.97162701,0.0008,120]
[326802152,1715381521592,-783.77876111,0.0008,120]
[326802153,1715381521601,-4892.22575795,0.0008,21]
[326802154,1715381521610,-2531.53120467,0.0008,120]
[326802155,1715381521619,-2025.57750902,0.0008,120]
[326802156,1715381521628,-2056.28233072,0.0008,120]
[326802157,1715381521637,-47405.78207649,0.0008,120]
[326802158,1715381521646,-643.73461476,0.0008,120]
[326802159,1715381521655,-907.14898522,0.0008,120]
[326802160,1715381521664,-852.81474211,0.0008,120]
[326802161,1715381521674,-8527.61604766,0.0008,120]
[326802162,1715381521683,-972.55174303,0.0008,120]
[326802163,1715381521692,-546.34401507,0.0008,120]
[326802164,1715381521702,-3525.113348,0.0008,2]
[326802165,1715381521712,-1320.39682437,0.0008,2]
[326802166,1715381521721,-560.95222885,0.0008,120]
[326802167,1715381521731,-715.84181244,0.0008,120]
[326802168,1715381521740,-729.01834313,0.0008,120]
[326802169,1715381521751,-1524.81736355,0.0008,120]
[326802170,1715381521760,-2617.75,0.0008,120]
[326802171,1715381521769,-1552.13926132,0.0008,120]
[326802172,1715381521778,-1408.2343071,0.0008,120]
[326802173,1715381521789,-709.67623673,0.0008,120]
[326802174,1715381521798,-2955.87218942,0.0008,120]
[326802175,1715381521808,-679.9540721,0.0008,120]
[326802176,1715381521817,-525.19815772,0.0008,120]
[326802177,1715381521827,-671.56638001,0.0008,120]
[326802178,1715381521836,-17680.05681525,0.0008,120]
[326802179,1715381521846,-4314.37443686,0.0008,120]
[326802180,1715381521855,-680.15176338,0.0008,120]
[326802181,1715381521864,-9230.01124458,0.0008,120]
[326802182,1715381521873,-990.64477109,0.0008,120]
[326802183,1715381521883,-1953.0,0.0008,120]
[326802184,1715381521892,-1273.91907993,0.0008,120]
[326802185,1715381521901,-1389.44473676,0.0008,120]
[326802186,1715381521911,-510.58082057,0.0008,2]
[326802187,1715381521920,-3744.19474015,0.0008,120]
[326802188,1715381521930,-1011.21353053,0.0008,120]
[326802189,1715381521939,-651.05028967,0.0008,120]
[326802190,1715381521948,-151.0,0.00080247,120]
[326802191,1715381521957,-160.0,0.00080448,7]
[326802192,1715381521966,-159.702122,0.00081096,120]
[326802193,1715381521976,-300.0,0.000815,106]
[326802194,1715381521995,-200.0,0.00081718,120]
[326802195,1715381522016,-500000.0,0.00082,120]
[326802196,1715381522034,-3000.0,0.00082,120]
[326802197,1715381522055,-3000.0,0.00082,120]
[326802198,1715381522077,-501.44997024,0.00082191,120]
[326802199,1715381522094,-160.0,0.00082386,8]
[326802200,1715381522113,-300.0,0.00083,107]
[326802201,1715381522126,-165.993042,0.00083166,120]
[326802202,1715381522144,-151.0,0.00083452,120]
[326802203,1715381522163,-3000.0,0.00084,120]
[326802204,1715381522180,-3000.0,0.00084,120]
[326802205,1715381522195,-3000.0,0.00084,120]
[326802206,1715381522212,-3000.0,0.00084,120]
[326802207,1715381522231,-3000.0,0.00084,120]
[326802208,1715381522246,-3000.0,0.00084,120]
[326802209,1715381522263,-160.0,0.00084324,9]
[326802210,1715381522278,-500.94617526,0.000845,108]
[326802211,1715381522294,-1998.15794393,0.00085,120]
[326802212,1715381522308,-2500.0,0.00085,120]
[326802213,1715381522322,-197.257994,0.00085999,120]
[326802214,1715381522336,-160.0,0.00086261,10]
[326802215,1715381522350,-151.0,0.00086658,120]
[326802216,1715381522364,-176.535382,0.00087671,2]
[326802217,1715381522379,-23652.25260193,0.00088,120]
[326802218,1715381522393,-160.0,0.00088199,11]
[326802219,1715381522408,-163.950788,0.00088548,120]
[326802220,1715381522421,-166.666666,0.00088767,120]
[326802221,1715381522436,-151.0,0.00088941,30]
[326802222,1715381522450,-311.0,0.00089863,120]
[326802223,1715381522464,-500.0,0.00089999,120]
[326802224,1715381522477,-500.0,0.00089999,120]
[326802225,1715381522491,-500.0,0.00089999,120]
[326802226,1715381522507,-500.0,0.00089999,120]
[326802227,1715381522521,-500.0,0.00089999,120]
[326802228,1715381522535,-500.0,0.00089999,120]
[326802229,1715381522548,-500.0,0.00089999,120]
[326802230,1715381522562,-500.0,0.00089999,120]
[326802231,1715381522574,-500.0,0.00089999,120]
[326802232,1715381522587,-637.66970911,0.00089999,120]
[326802233,1715381522600,-500.0,0.00089999,120]
[326802234,1715381522613,-500.0,0.00089999,120]
[326802235,1715381522627,-500.0,0.00089999,120]
[326802236,1715381522641,-500.0,0.00089999,120]
[326802237,1715381522654,-406.30955241,0.00089999,120]
[326802238,1715381522667,-500.0,0.00089999,120]
[326802239,1715381522681,-500.0,0.00089999,120]
[326802240,1715381522695,-500.0,0.00089999,120]
[326802241,1715381522708,-500.0,0.00089999,120]
[326802242,1715381522722,-500.0,0.00089999,120]
[326802243,1715381522735,-500.0,0.00089999,120]
[326802244,1715381522750,-500.0,0.00089999,120]
[326802245,1715381522763,-300.0,0.00089999,120]
[326802246,1715381522776,-156.30955241,0.00089999,120]
[326802247,1715381522790,-1500.0,0.0009,30]
[326802248,1715381522803,-1526.46,0.0009,30]
[326802249,1715381522818,-1500.0,0.0009,30]
[326802250,1715381522831,-1500.0,0.0009,30]
[326802251,1715381522844,-1998.15794393,0.0009,120]
[326802252,1715381522858,-1000.0,0.0009,120]
[326802253,1715381522871,-553.69710696,0.0009,2]
[326802254,1715381522885,-160.0,0.00090137,12]
[326802255,1715381522898,-159.702122,0.00090411,120]
[326802256,1715381522913,-160.0,0.00092075,13]
[326802257,1715381522926,-197.257994,0.00092372,120]
[326802258,1715381522940,-1000.0,0.00092999,120]
[326802259,1715381522954,-1000.0,0.00092999,120]
[326802260,1715381522968,-1000.0,0.00092999,120]
[326802261,1715381522982,-1000.0,0.00092999,120]
[326802262,1715381522997,-1000.0,0.00092999,120]
[326802263,1715381523012,-1000.0,0.00092999,120]
[326802264,1715381523026,-1066.83800672,0.00092999,120]
[326802265,1715381523041,-160.0,0.00094013,14]
[326802266,1715381523055,-260.65417512,0.00094013,5]
[326802267,1715381523068,-1847.07323277,0.000943,120]
[326802268,1715381523083,-180415.1898,0.000944,120]
[326802269,1715381523095,-151.0,0.00094712,120]
[326802270,1715381523110,-6050.67472144,0.0009488,60]
[326802271,1715381523123,-1998.15794393,0.00095,120]
[326802272,1715381523137,-165.993042,0.00096621,120]
[326802273,1715381523150,-167.555949,0.00096621,120]
[326802274,1715381523163,-516.56897218,0.000975,30]
[326802275,1715381523177,-1297.68517474,0.00098,120]
[326802276,1715381523194,-197.257994,0.00098746,120]
[326802277,1715381523208,-159.702122,0.00099726,120]
[326802278,1715381523221,-1000.0,0.001,120]
[326802279,1715381523236,-500000.0,0.001,120]
[326802280,1715381523249,-1500.0,0.001,30]
[326802281,1715381523263,-1500.0,0.001,30]
[326802282,1715381523280,-1500.0,0.001,30]
[326802283,1715381523293,-1998.15794393,0.001,120]
[326802284,1715381523306,-1116.1489996,0.001,120]
[326802285,1715381523320,-2093.41953246,0.001,120]
[326802286,1715381523333,-902.6616,0.001,94]
[326802287,1715381523346,-500.74650656,0.001,2]
[326802288,1715381523360,-151.0,0.001,120]
[326802289,1715381523374,-154.7215003,0.001,2]
[326802290,1715381523387,-166.666666,0.00100822,120]
[326802291,1715381523400,-480.0,0.00104779,120]
[326802292,1715381523414,-2500.0,0.00105,120]
[326802293,1715381523593,-197.257994,0.00105119,120]
[326802294,1715381523635,-159.702122,0.00109041,120]
[326802295,1715381523645,-300.02059876,0.00109898,14]
[326802296,1715381523654,-165.993042,0.00110076,120]
[326802297,1715381523663,-253.05378171,0.00111176,42]
[326802298,1715381523672,-197.257994,0.00111493,120]
[326802299,1715381523682,-4832.90414175,0.00112718,120]
[326802300,1715381523691,-163.950788,0.00112767,120]
[326802301,1715381523700,-166.666666,0.00112877,120]
[326802302,1715381523710,-167.555949,0.00116804,120]
[326802303,1715381523720,-151.0,0.00117068,120]
[326802304,1715381523729,-197.257994,0.00117866,120]
[326802305,1715381523738,-159.702122,0.00118356,120]
[326802306,1715381523749,-155.81586083,0.00119894,2]
[326802307,1715381523761,-176.535382,0.00121918,2]
[326802308,1715381523770,-165.993042,0.00123531,120]
[326802309,1715381523779,-197.257994,0.0012424,120]
[326802310,1715381523788,-166.666666,0.00124932,120]
[326802311,1715381523798,-500000.0,0.00125,120]
[326802312,1715381523807,-159.702122,0.00127671,120]
[326802313,1715381523816,-306.0,0.0012898,120]
[326802314,1715381523826,-153.0,0.0012898,120]
[326802315,1715381523835,-153.0,0.0012898,120]
[326802316,1715381523844,-182.192512,0.0012898,120]
[326802317,1715381523854,-153.0,0.0012898,120]
[326802318,1715381523864,-153.0,0.00129802,120]
[326802319,1715381523873,-153.0,0.00129802,120]
[326802320,1715381523883,-197.257994,0.00130613,120]
[326802321,1715381523892,-2500.0,0.00135,120]
[326802322,1715381523902,-1000.0,0.00136986,120]
[326802323,1715381523911,-1000.0,0.00136986,120]
[326802324,1715381523921,-1000.0,0.00136986,120]
[326802325,1715381523930,-1000.0,0.00136986,120]
[326802326,1715381523939,-1000.0,0.00136986,120]
[326802327,1715381523948,-1043.40880023,0.00136986,120]
[326802328,1715381523958,-500.0,0.00136986,120]
[326802329,1715381523967,-500.0,0.00136986,120]
[326802330,1715381523976,-500.85238517,0.00136986,120]
[326802331,1715381523985,-165.993042,0.00136986,120]
[326802332,1715381523994,-166.666666,0.00136986,120]
[326802333,1715381524006,-163.950788,0.00136986,120]
[326802334,1715381524015,-166.666666,0.00136986,120]
[326802335,1715381524026,-159.702122,0.00136986,120]
[326802336,1715381524036,-167.555949,0.00136986,120]
[326802337,1715381524045,-197.257994,0.00136987,120]
[326802338,1715381524054,-151.0,0.00139425,120]
[326802339,1715381524064,-31502.61153541,0.0014866,120]
[326802340,1715381524073,-198532.12068851,0.0015,120]
[326802341,1715381524083,-500000.0,0.0015,120]
[326802342,1715381524092,-1998.15794393,0.0015,120]
[326802343,1715381524101,-20000.0,0.0015,120]
[326802344,1715381524111,-500.74650656,0.0015,2]
[326802345,1715381524121,-1000.0,0.00150684,7]
[326802346,1715381524132,-1000.0,0.00150684,7]
[326802347,1715381524142,-1000.0,0.00150684,7]
[326802348,1715381524152,-1000.0,0.00150684,7]
[326802349,1715381524162,-1000.0,0.00150684,7]
[326802350,1715381524171,-1000.0,0.00150684,7]
[326802351,1715381524185,-1000.0,0.00150684,7]
[326802352,1715381524194,-1000.0,0.00150684,7]
[326802353,1715381524204,-1000.0,0.00150684,7]
[326802354,1715381524213,-1000.0,0.00150684,7]
[326802355,1715381524225,-1000.0,0.00150684,7]
[326802356,1715381524235,-1000.0,0.00150684,7]
[326802357,1715381524244,-1000.0,0.00150684,7]
[326802358,1715381524256,-1000.0,0.00150684,7]
[326802359,1715381524266,-1000.0,0.00150684,7]
[326802360,1715381524275,-1000.0,0.00150684,7]
[326802361,1715381524285,-965.44749301,0.00150684,7]
[326802362,1715381524295,-176.535382,0.00156164,2]
[326802363,1715381524305,-10079.98930951,0.001589,120]
[326802364,1715381524314,-2500.0,0.00159,120]
[326802365,1715381524324,-931.42,0.0016,120]
[326802366,1715381524334,-151.0,0.00161781,120]
[326802367,1715381524343,-10122.81840097,0.00164,120]
[326802368,1715381524353,-1442.97062044,0.00166667,120]
[326802369,1715381524362,-440.0,0.00167439,120]
[326802370,1715381524371,-1622.03,0.0017,68]
[326802371,1715381524381,-151.0,0.00184137,120]
[326802372,1715381524390,-53410.20753462,0.0019,30]
[326802373,1715381524400,-1868.0,0.0019,120]
[326802374,1715381524409,-2500.0,0.00195,120]
[326802375,1715381524419,-1000.0,0.002,120]
[326802376,1715381524429,-1000.0,0.002,120]
[326802377,1715381524438,-500000.0,0.002,120]
[326802378,1715381524447,-1998.15794393,0.002,120]
[326802379,1715381524456,-177.97094208,0.002,120]
[326802380,1715381524465,-152.33906204,0.002,120]
[326802381,1715381524474,-500.74650656,0.002,2]
[326802382,1715381524483,-848.46852571,0.00204,120]
[326802383,1715381524493,-7787.63130094,0.00204,120]
[326802384,1715381524502,-844.0,0.00205,120]
[326802385,1715381524511,-7783.0,0.00205,120]
[326802386,1715381524521,-844.0,0.00206,120]
[326802387,1715381524530,-7783.0,0.00206,120]
[326802388,1715381524541,-151.0,0.00206493,120]
[326802389,1715381524550,-844.0,0.00207,120]
[326802390,1715381524558,-7783.0,0.00207,120]
[326802391,1715381524567,-844.0,0.00208,120]
[326802392,1715381524576,-7783.0,0.00208,120]
[326802393,1715381524585,-663.69501812,0.00208,120]
[326802394,1715381524594,-844.0,0.00209,120]
[326802395,1715381524604,-7783.0,0.00209,120]
[326802396,1715381524613,-662.0,0.00209,120]
[326802397,1715381524622,-153.0,0.00211863,120]
[326802398,1715381524631,-2500.0,0.00219,120]
[326802399,1715381524640,-500.0,0.00219178,120]
[326802400,1715381524649,-500.0,0.00219178,120]
[326802401,1715381524659,-500.0,0.00219178,120]
[326802402,1715381524669,-500.0,0.00219178,120]
[326802403,1715381524678,-500.0,0.00219178,120]
[326802404,1715381524688,-500.0,0.00219178,120]
[326802405,1715381524697,-500.0,0.00219178,120]
[326802406,1715381524706,-500.0,0.00219178,120]
[326802407,1715381524716,-500.0,0.00219178,120]
[326802408,1715381524725,-500.0,0.00219178,120]
[326802409,1715381524735,-500.0,0.00219178,120]
[326802410,1715381524744,-500.0,0.00219178,120]
[326802411,1715381524755,-500.0,0.00219178,120]
[326802412,1715381524764,-500.0,0.00219178,120]
[326802413,1715381524773,-500.0,0.00219178,120]
[326802414,1715381524782,-500.0,0.00219178,120]
[326802415,1715381524792,-500.0,0.00219178,120]
[326802416,1715381524801,-500.0,0.00219178,120]
[326802417,1715381524811,-500.0,0.00219178,120]
[326802418,1715381524820,-500.0,0.00219178,120]
[326802419,1715381524829,-500.0,0.00219178,120]
[326802420,1715381524839,-500.0,0.00219178,120]
[326802421,1715381524848,-163.46,0.00219178,120]
[326802422,1715381524857,-869.295296,0.00225,92]
[326802423,1715381524866,-151.0,0.00228849,120]
[326802424,1715381524875,-153.0,0.0022898,120]
[326802425,1715381524884,-153.0,0.0022898,120]
[326802426,1715381524894,-496.11307183,0.00233457,120]
[326802427,1715381524903,-154.6619177,0.00235425,120]
[326802428,1715381524912,-1765.6287,0.0024,87]
[326802429,1715381524922,-1998.15794393,0.0025,120]
[326802430,1715381524931,-950.0,0.0025,120]
[326802431,1715381524940,-150.0,0.0025,120]
[326802432,1715381524949,-500.74650656,0.0025,2]
[326802433,1715381524959,-151.0,0.00251205,120]
[326802434,1715381524968,-2500.0,0.00259,120]
[326802435,1715381524977,-308.9803733,0.00261452,120]
[326802436,1715381524986,-153.0,0.00261452,120]
[326802437,1715381524995,-153.0,0.00261452,120]
[326802438,1715381525006,-153.0,0.00261452,120]
[326802439,1715381525015,-153.0,0.00261452,120]
[326802440,1715381525024,-2934.27156581,0.0027,30]
[326802441,1715381525033,-2934.27156581,0.0027,30]
[326802442,1715381525045,-2934.27156581,0.0027,30]
[326802443,1715381525056,-2934.27156581,0.0027,30]
[326802444,1715381525067,-2934.27156581,0.0027,30]
[326802445,1715381525077,-153.0,0.0027274,120]
[326802446,1715381525087,-151.0,0.00273562,120]
[326802447,1715381525097,-961.65,0.00273972,120]
[326802448,1715381525108,-961.65,0.00273972,120]
[326802449,1715381525119,-961.65,0.00273972,120]
[326802450,1715381525128,-961.65,0.00273972,120]
[326802451,1715381525138,-961.65,0.00273972,120]
[326802452,1715381525148,-961.65,0.00273972,120]
[326802453,1715381525157,-961.65,0.00273972,120]
[326802454,1715381525166,-961.65,0.00273972,120]
[326802455,1715381525177,-961.65,0.00273972,120]
[326802456,1715381525189,-961.65,0.00273972,120]
[326802457,1715381525203,-961.65,0.00273972,120]
[326802458,1715381525212,-961.65,0.00273972,120]
[326802459,1715381525222,-961.65,0.00273972,120]
[326802460,1715381525233,-961.65,0.00273972,120]
[326802461,1715381525242,-961.65,0.00273972,120]
[326802462,1715381525252,-961.65,0.00273972,120]
[326802463,1715381525262,-961.65,0.00273972,120]
[326802464,1715381525273,-961.65,0.00273972,120]
[326802465,1715381525282,-961.65,0.00273972,120]
[326802466,1715381525291,-961.65,0.00273972,120]
[326802467,1715381525300,-961.65,0.00273972,120]
[326802468,1715381525309,-961.65,0.00273972,120]
[326802469,1715381525318,-961.65,0.00273972,120]
[326802470,1715381525327,-961.81208249,0.00273972,120]
[326802471,1715381525336,-306.0,0.00281918,120]
[326802472,1715381525345,-293.73503485,0.0029,120]
[326802473,1715381525354,-1868.0,0.0029,120]
[326802474,1715381525363,-151.0,0.00295918,120]
[326802475,1715381525372,-2500.0,0.00298,120]
[326802476,1715381525381,-154.234805,0.00299041,120]
[326802477,1715381525390,-153.0,0.00299041,120]
[326802478,1715381525400,-153.0,0.00299041,120]
[326802479,1715381525411,-153.0,0.00299041,120]
[326802480,1715381525421,-163.5853131,0.00299589,120]
[326802481,1715381525430,-150.0,0.003,120]
[326802482,1715381525439,-200.0,0.003,120]
[326802483,1715381525448,-1000.0,0.003,120]
[326802484,1715381525458,-1998.15794393,0.003,120]
[326802485,1715381525467,-446660.58324011,0.003,120]
[326802632,1715382633602,-191.351973,0.00019587,2]
[326802635,1715382633612,-1837.54755465,0.00019836,2]
[326802638,1715382633625,-1086.3237768,0.00019836,2]
[326802641,1715382633637,-21976.12866855,0.00019836,2]
[326802644,1715382633646,-1103.27161245,0.00020811,2]
[326802647,1715382633658,-251.29027742,0.00020812,2]
[326802650,1715382633667,-5777.49171674,0.00020812,2]
[326802653,1715382633676,-251.29027742,0.00020812,2]
[326802655,1715382633685,-298.86861533,0.0002091,2]
[326802658,1715382633695,-246.65452548,0.0002091,2]
[326802661,1715382633704,-200.0,0.0002091,2]
[326802664,1715382633713,-379.37889103,0.00020911,2]
[326802667,1715382633722,-17751.70533685,0.00020911,2]
[326802785,1715382641515,-799.9820388,0.00020911,2]
[326802786,1715382641851,-114828.41487315,0.00020911,2]
[326802787,1715382641860,-500.0,0.00020911,2]
[326802788,1715382641869,-500.0,0.00020911,2]
[326802789,1715382641878,-500.0,0.00020911,2]
[326802790,1715382641887,-311.72948095,0.00020911,2]
[326802791,1715382641896,-500.0,0.00020911,2]
[326802792,1715382641905,-69087.7717195,0.00020912,2]
[326802793,1715382641915,-938.6240169,0.00020912,2]
[326802794,1715382641924,-3115.22330445,0.00020913,2]
[326802795,1715382641933,-166.666666,0.00021918,2]
[326802796,1715382641942,-5229.71545665,0.00022,2]
[326802797,1715382641951,-166.666666,0.00022431,2]
[326802798,1715382641960,-159.4535182,0.00022738,2]
[326802799,1715382641969,-166.666666,0.00022944,2]
[326802800,1715382641978,-166.666666,0.00023456,2]
[326802801,1715382641987,-166.666666,0.00023969,2]
[326802802,1715382641996,-714.97924015,0.00024381,2]
[326802803,1715382642004,-154.82968734,0.00024382,2]
[326802804,1715382642014,-166.666666,0.00024482,2]
[326802805,1715382642023,-1103.27161242,0.00024487,2]